[Event "Early-Titled-Tuesday-Blitz-March-19-2024"]
[Site "Chess.com"]
[Date "2024.03.19"]
[Round "4"]
[White "microbear"]
[Black "jup1978"]
[Result "1-0"]
[WhiteElo "2334"]
[BlackElo "2513"]
[TimeControl "180+1"]
[EndTime "8:38:06 PDT"]
[Termination "microbear won by resignation"]

1. e3 {[%clk 0:02:58.7]} 1... g6 {[%clk 0:02:58.8]} 2. f4 {[%clk 0:02:58.3]}
2... Bg7 {[%clk 0:02:59.2]} 3. Nf3 {[%clk 0:02:54.2]} 3... b6 {[%clk 0:02:59.5]}
4. d4 {[%clk 0:02:54.5]} 4... Bb7 {[%clk 0:02:59.6]} 5. Bd3 {[%clk 0:02:55.1]}
5... d6 {[%clk 0:02:55]} 6. O-O {[%clk 0:02:50.3]} 6... Nd7 {[%clk 0:02:54.9]}
7. c3 {[%clk 0:02:44.1]} 7... e6 {[%clk 0:02:52.9]} 8. Bd2 {[%clk 0:02:42.1]}
8... Ne7 {[%clk 0:02:52.7]} 9. Be1 {[%clk 0:02:42.4]} 9... c5 {[%clk 0:02:51.9]}
10. Bh4 {[%clk 0:02:42.2]} 10... Bf6 {[%clk 0:02:44.3]} 11. Bxf6 {[%clk
0:02:40.3]} 11... Nxf6 {[%clk 0:02:45.2]} 12. Nbd2 {[%clk 0:02:40.6]} 12... Qc7
{[%clk 0:02:42.4]} 13. Qe1 {[%clk 0:02:39.1]} 13... O-O-O {[%clk 0:02:38.8]} 14.
Qh4 {[%clk 0:02:38.3]} 14... Nfd5 {[%clk 0:02:33.5]} 15. e4 {[%clk 0:02:23.3]}
15... Ne3 {[%clk 0:02:33]} 16. Rfe1 {[%clk 0:02:22.7]} 16... c4 {[%clk
0:02:24.1]} 17. Bb1 {[%clk 0:02:19.4]} 17... Nxg2 {[%clk 0:02:21.7]} 18. Kxg2
{[%clk 0:02:18.2]} 18... f5 {[%clk 0:02:21.5]} 19. Kf2 {[%clk 0:02:00.4]} 19...
h6 {[%clk 0:02:17.9]} 20. Qf6 {[%clk 0:01:55.5]} 20... Kb8 {[%clk 0:02:04.9]}
21. Qxe6 {[%clk 0:01:43.1]} 21... fxe4 {[%clk 0:02:04.8]} 22. Nxe4 {[%clk
0:01:30]} 22... Nf5 {[%clk 0:02:05.7]} 23. Nf6 {[%clk 0:01:21.3]} 23... Rhf8
{[%clk 0:01:50.8]} 24. Bxf5 {[%clk 0:01:15.4]} 24... gxf5 {[%clk 0:01:50.2]} 25.
d5 {[%clk 0:00:55.2]} 25... Qc5+ {[%clk 0:01:43.1]} 26. Nd4 {[%clk 0:00:54.9]}
26... a6 {[%clk 0:01:38.2]} 27. Kf1 {[%clk 0:00:49]} 27... Bc8 {[%clk
0:01:28.8]} 28. Nc6+ {[%clk 0:00:46.6]} 28... Ka8 {[%clk 0:01:23.6]} 29. Nxd8
{[%clk 0:00:42]} 29... Bxe6 {[%clk 0:01:22.7]} 30. Nxe6 {[%clk 0:00:42.4]} 30...
Qb5 {[%clk 0:01:13.5]} 31. Nc7+ {[%clk 0:00:40.7]} 1-0

[Event "Early-Titled-Tuesday-Blitz-March-19-2024"]
[Site "Chess.com"]
[Date "2024.03.19"]
[Round "4"]
[White "Binary010"]
[Black "Casper"]
[Result "1-0"]
[WhiteElo "2830"]
[BlackElo "2495"]
[TimeControl "180+1"]
[EndTime "8:38:19 PDT"]
[Termination "Binary010 won by resignation"]

1. e4 {[%clk 0:03:00.9]} 1... g6 {[%clk 0:02:58.2]} 2. d4 {[%clk 0:03:00.1]}
2... Bg7 {[%clk 0:02:59.1]} 3. Nc3 {[%clk 0:03:00.6]} 3... d6 {[%clk 0:03:00]}
4. f4 {[%clk 0:03:00.8]} 4... Nf6 {[%clk 0:02:55.2]} 5. Nf3 {[%clk 0:03:01]}
5... Bg4 {[%clk 0:02:55.5]} 6. h3 {[%clk 0:02:44.2]} 6... Bxf3 {[%clk
0:02:55.2]} 7. Qxf3 {[%clk 0:02:45.1]} 7... c5 {[%clk 0:02:49.2]} 8. dxc5 {[%clk
0:02:43.3]} 8... dxc5 {[%clk 0:02:48.5]} 9. e5 {[%clk 0:02:39.7]} 9... Ng8
{[%clk 0:02:32.9]} 10. Qxb7 {[%clk 0:02:32.3]} 10... Nd7 {[%clk 0:02:33.5]} 11.
Bb5 {[%clk 0:02:30.9]} 11... Rc8 {[%clk 0:02:32.2]} 12. Be3 {[%clk 0:02:15.3]}
12... Rc7 {[%clk 0:02:30.7]} 13. Qa6 {[%clk 0:02:12.8]} 13... Nh6 {[%clk
0:02:27.4]} 14. O-O-O {[%clk 0:02:12.7]} 14... O-O {[%clk 0:02:27.4]} 15. e6
{[%clk 0:02:06.7]} 15... Bxc3 {[%clk 0:02:24.3]} 16. bxc3 {[%clk 0:02:04.9]}
16... Nf5 {[%clk 0:02:23.5]} 17. Bf2 {[%clk 0:01:59.4]} 17... Nd6 {[%clk
0:02:16.9]} 18. Bxd7 {[%clk 0:01:56.1]} 18... Qb8 {[%clk 0:02:07.3]} 19. Rxd6
{[%clk 0:01:28.7]} 19... Rb7 {[%clk 0:01:52.2]} 20. exf7+ {[%clk 0:00:50.5]}
20... Kg7 {[%clk 0:01:37.7]} 21. Bxc5 {[%clk 0:00:45.1]} 21... Rb1+ {[%clk
0:01:29.7]} 22. Kd2 {[%clk 0:00:44.3]} 22... Rxh1 {[%clk 0:01:30.6]} 23. Bd4+
{[%clk 0:00:37.8]} 23... Kh6 {[%clk 0:01:30.5]} 24. Re6 {[%clk 0:00:23.8]} 24...
Qb1 {[%clk 0:01:27.3]} 25. Qe2 {[%clk 0:00:22.5]} 25... Qc1+ {[%clk 0:01:24.2]}
26. Kd3 {[%clk 0:00:22.1]} 26... Rd1+ {[%clk 0:01:20.5]} 27. Kc4 {[%clk
0:00:22.2]} 27... Qa3 {[%clk 0:01:11.5]} 28. Qxd1 {[%clk 0:00:19.2]} 1-0

[Event "Early-Titled-Tuesday-Blitz-March-19-2024"]
[Site "Chess.com"]
[Date "2024.03.19"]
[Round "4"]
[White "DucksParadise"]
[Black "Navyblue1"]
[Result "1-0"]
[WhiteElo "2510"]
[BlackElo "2222"]
[TimeControl "180+1"]
[EndTime "8:38:28 PDT"]
[Termination "DucksParadise won by resignation"]

1. e4 {[%clk 0:03:00.9]} 1... c5 {[%clk 0:02:29]} 2. Nf3 {[%clk 0:02:59.4]} 2...
d6 {[%clk 0:02:29.2]} 3. Bb5+ {[%clk 0:02:54.6]} 3... Nd7 {[%clk 0:02:28]} 4.
O-O {[%clk 0:02:52]} 4... Nf6 {[%clk 0:02:25.9]} 5. Re1 {[%clk 0:02:51]} 5...
Qb6 {[%clk 0:02:22.9]} 6. a4 {[%clk 0:02:37.8]} 6... a6 {[%clk 0:02:19]} 7. Bf1
{[%clk 0:02:36.5]} 7... g6 {[%clk 0:02:17.7]} 8. a5 {[%clk 0:01:56.7]} 8... Qc7
{[%clk 0:02:04.1]} 9. c3 {[%clk 0:01:52.8]} 9... Bg7 {[%clk 0:01:58.7]} 10. d4
{[%clk 0:01:51.5]} 10... cxd4 {[%clk 0:01:58.4]} 11. cxd4 {[%clk 0:01:52.4]}
11... e6 {[%clk 0:01:52.9]} 12. Nc3 {[%clk 0:01:51.9]} 12... O-O {[%clk
0:01:52.2]} 13. Be3 {[%clk 0:01:42.3]} 13... Ng4 {[%clk 0:01:38.9]} 14. Bf4
{[%clk 0:01:37.4]} 14... b5 {[%clk 0:01:24]} 15. axb6 {[%clk 0:01:34.8]} 15...
Qxb6 {[%clk 0:01:08.9]} 16. Qd2 {[%clk 0:01:30.1]} 16... e5 {[%clk 0:00:49.6]}
17. Nd5 {[%clk 0:01:28.5]} 17... Qd8 {[%clk 0:00:34.7]} 18. Bg5 {[%clk
0:01:21.9]} 18... f6 {[%clk 0:00:31.4]} 19. Bh4 {[%clk 0:01:07.1]} 19... Nb6
{[%clk 0:00:20.6]} 20. Qa5 {[%clk 0:00:53.7]} 20... Nxd5 {[%clk 0:00:19.3]} 21.
Qxd5+ {[%clk 0:00:54.6]} 21... Be6 {[%clk 0:00:16.8]} 22. Qxe6+ {[%clk
0:00:54.5]} 22... Kh8 {[%clk 0:00:17.5]} 23. Qxg4 {[%clk 0:00:54.5]} 1-0

[Event "Early-Titled-Tuesday-Blitz-March-19-2024"]
[Site "Chess.com"]
[Date "2024.03.19"]
[Round "4"]
[White "GMBenjaminBok"]
[Black "RoelandPruijssers"]
[Result "1-0"]
[WhiteElo "2976"]
[BlackElo "2701"]
[TimeControl "180+1"]
[EndTime "8:38:32 PDT"]
[Termination "GMBenjaminBok won by resignation"]

1. d4 {[%clk 0:03:00.9]} 1... Nf6 {[%clk 0:02:59.4]} 2. c4 {[%clk 0:03:01.1]}
2... g6 {[%clk 0:02:58.9]} 3. g3 {[%clk 0:03:01.2]} 3... Bg7 {[%clk 0:02:58.7]}
4. Bg2 {[%clk 0:03:01.8]} 4... O-O {[%clk 0:02:58.6]} 5. Nc3 {[%clk 0:03:02.3]}
5... d6 {[%clk 0:02:57.6]} 6. Nf3 {[%clk 0:03:02.7]} 6... Nc6 {[%clk 0:02:56]}
7. O-O {[%clk 0:03:02.7]} 7... e5 {[%clk 0:02:55.7]} 8. dxe5 {[%clk 0:03:02.7]}
8... dxe5 {[%clk 0:02:54.5]} 9. Bg5 {[%clk 0:03:02.4]} 9... Be6 {[%clk
0:02:19.2]} 10. Qc1 {[%clk 0:03:01.4]} 10... Qc8 {[%clk 0:02:10.3]} 11. Rd1
{[%clk 0:03:00.4]} 11... Re8 {[%clk 0:02:07]} 12. Nd5 {[%clk 0:02:49.7]} 12...
Nd7 {[%clk 0:01:47.2]} 13. Be3 {[%clk 0:02:35.8]} 13... a5 {[%clk 0:01:38.7]}
14. Ng5 {[%clk 0:02:34]} 14... Bf5 {[%clk 0:01:25.8]} 15. h3 {[%clk 0:02:09.2]}
15... Nd4 {[%clk 0:01:13.2]} 16. Bxd4 {[%clk 0:01:41.5]} 16... exd4 {[%clk
0:01:14.1]} 17. g4 {[%clk 0:01:41.2]} 17... Be6 {[%clk 0:01:13.8]} 18. Nf4
{[%clk 0:01:33.9]} 18... Nf8 {[%clk 0:01:06.2]} 19. c5 {[%clk 0:01:25.3]} 19...
Bh6 {[%clk 0:01:01.8]} 20. Nf3 {[%clk 0:01:19.4]} 20... Bxg4 {[%clk 0:00:47.9]}
21. hxg4 {[%clk 0:01:15.6]} 21... Qxg4 {[%clk 0:00:48.5]} 22. Rxd4 {[%clk
0:01:13.3]} 22... Rad8 {[%clk 0:00:34.9]} 23. e3 {[%clk 0:01:03.6]} 23... Rxd4
{[%clk 0:00:28.2]} 24. Nxd4 {[%clk 0:01:04.5]} 24... Bxf4 {[%clk 0:00:25.8]} 25.
exf4 {[%clk 0:01:05.4]} 25... Re2 {[%clk 0:00:19]} 26. Qd1 {[%clk 0:00:48.9]}
1-0

[Event "Early-Titled-Tuesday-Blitz-March-19-2024"]
[Site "Chess.com"]
[Date "2024.03.19"]
[Round "4"]
[White "XDPS"]
[Black "Boundless_Strike"]
[Result "1-0"]
[WhiteElo "2911"]
[BlackElo "2623"]
[TimeControl "180+1"]
[EndTime "8:38:44 PDT"]
[Termination "XDPS won by checkmate"]

1. d4 {[%clk 0:03:00.9]} 1... e5 {[%clk 0:03:00.1]} 2. dxe5 {[%clk 0:03:00.8]}
2... d6 {[%clk 0:03:00.5]} 3. exd6 {[%clk 0:03:01]} 3... Bxd6 {[%clk 0:03:01.4]}
4. g3 {[%clk 0:02:57.4]} 4... Nc6 {[%clk 0:03:01.5]} 5. Bg2 {[%clk 0:02:58]}
5... Qe7 {[%clk 0:03:01.9]} 6. c3 {[%clk 0:02:48]} 6... Nf6 {[%clk 0:03:00.3]}
7. Qc2 {[%clk 0:02:45]} 7... Bg4 {[%clk 0:02:51.5]} 8. Nf3 {[%clk 0:02:39.5]}
8... O-O-O {[%clk 0:02:51.2]} 9. O-O {[%clk 0:02:39.9]} 9... h5 {[%clk 0:02:23]}
10. Bg5 {[%clk 0:02:39.1]} 10... Bxf3 {[%clk 0:02:20.3]} 11. Bxf3 {[%clk
0:02:22.7]} 11... h4 {[%clk 0:02:20.4]} 12. Nd2 {[%clk 0:02:12.6]} 12... hxg3
{[%clk 0:02:08.2]} 13. hxg3 {[%clk 0:02:13.5]} 13... Kb8 {[%clk 0:01:34.5]} 14.
Ne4 {[%clk 0:01:55.1]} 14... Qe5 {[%clk 0:01:27.5]} 15. Nxd6 {[%clk 0:01:39.2]}
15... Rxd6 {[%clk 0:00:46.3]} 16. Bf4 {[%clk 0:01:37.5]} 16... Qe6 {[%clk
0:00:46.7]} 17. Bxd6 {[%clk 0:01:34.7]} 17... Qh3 {[%clk 0:00:46.3]} 18. Bxc7+
{[%clk 0:01:22.7]} 18... Kxc7 {[%clk 0:00:46.2]} 19. Rfd1 {[%clk 0:01:23.4]}
19... Ne5 {[%clk 0:00:08.1]} 20. Bg2 {[%clk 0:01:14.2]} 20... Qh2+ {[%clk
0:00:08.4]} 21. Kf1 {[%clk 0:01:15]} 21... Neg4 {[%clk 0:00:09]} 22. Qf5 {[%clk
0:01:09.5]} 22... Rh5 {[%clk 0:00:05.6]} 23. Qf4+ {[%clk 0:01:09.3]} 23... Re5
{[%clk 0:00:06.4]} 24. Qc4+ {[%clk 0:00:59.7]} 24... Kb6 {[%clk 0:00:06.6]} 25.
Rd6+ {[%clk 0:00:59.5]} 25... Ka5 {[%clk 0:00:05.6]} 26. Qb4# {[%clk 0:00:59.5]}
1-0

[Event "Early-Titled-Tuesday-Blitz-March-19-2024"]
[Site "Chess.com"]
[Date "2024.03.19"]
[Round "4"]
[White "Daaksboy"]
[Black "viktorgen2021"]
[Result "1-0"]
[WhiteElo "1995"]
[BlackElo "2465"]
[TimeControl "180+1"]
[EndTime "8:38:45 PDT"]
[Termination "Daaksboy won on time"]

1. Nf3 {[%clk 0:03:00.9]} 1... Nf6 {[%clk 0:02:49.4]} 2. c4 {[%clk 0:03:00]}
2... g6 {[%clk 0:02:49.3]} 3. d4 {[%clk 0:02:59]} 3... Bg7 {[%clk 0:02:48.6]} 4.
Nc3 {[%clk 0:02:59.1]} 4... O-O {[%clk 0:02:49.2]} 5. e4 {[%clk 0:02:58.6]} 5...
d6 {[%clk 0:02:49.8]} 6. Be2 {[%clk 0:02:58.8]} 6... e5 {[%clk 0:02:47.2]} 7.
O-O {[%clk 0:02:57.6]} 7... Nc6 {[%clk 0:02:45.5]} 8. d5 {[%clk 0:02:58.1]} 8...
Ne7 {[%clk 0:02:39.5]} 9. b4 {[%clk 0:02:58.7]} 9... a5 {[%clk 0:02:38.3]} 10.
bxa5 {[%clk 0:02:58.9]} 10... Nd7 {[%clk 0:02:37.9]} 11. a4 {[%clk 0:02:54.2]}
11... Nc5 {[%clk 0:02:28.1]} 12. Be3 {[%clk 0:02:52.6]} 12... Rxa5 {[%clk
0:02:23.2]} 13. Nd2 {[%clk 0:02:50.9]} 13... b6 {[%clk 0:02:14.1]} 14. Nb5
{[%clk 0:02:50.3]} 14... f5 {[%clk 0:02:09.6]} 15. f3 {[%clk 0:02:50.3]} 15...
f4 {[%clk 0:02:07.5]} 16. Bf2 {[%clk 0:02:50.9]} 16... g5 {[%clk 0:02:08.2]} 17.
Nb3 {[%clk 0:02:46.4]} 17... Nxb3 {[%clk 0:02:06.7]} 18. Qxb3 {[%clk 0:02:47.3]}
18... h5 {[%clk 0:02:03.9]} 19. Qc3 {[%clk 0:02:45.6]} 19... g4 {[%clk
0:02:00.9]} 20. c5 {[%clk 0:02:45.9]} 20... dxc5 {[%clk 0:01:56]} 21. Bh4 {[%clk
0:02:45.9]} 21... g3 {[%clk 0:01:44.7]} 22. Bc4 {[%clk 0:02:40.3]} 22... Kh7
{[%clk 0:01:38.5]} 23. Rad1 {[%clk 0:02:37.6]} 23... Qd7 {[%clk 0:01:23.2]} 24.
d6 {[%clk 0:02:34.8]} 24... cxd6 {[%clk 0:01:10.2]} 25. Rxd6 {[%clk 0:02:34.4]}
25... Qb7 {[%clk 0:01:07.6]} 26. hxg3 {[%clk 0:02:25.6]} 26... Ng6 {[%clk
0:01:04.6]} 27. Rxg6 {[%clk 0:02:20.1]} 27... Kxg6 {[%clk 0:01:01.8]} 28. Rd1
{[%clk 0:02:20.8]} 28... Kh7 {[%clk 0:00:55.5]} 29. gxf4 {[%clk 0:02:19.9]}
29... exf4 {[%clk 0:00:51.5]} 30. Qc2 {[%clk 0:02:14.7]} 30... Be5 {[%clk
0:00:39.5]} 31. Rd5 {[%clk 0:02:12.8]} 31... Qg7 {[%clk 0:00:37.7]} 32. Nd6
{[%clk 0:01:53.3]} 32... Be6 {[%clk 0:00:33.9]} 33. Nf5 {[%clk 0:01:48.8]} 33...
Bxf5 {[%clk 0:00:20.4]} 34. exf5 {[%clk 0:01:49]} 34... Kh8 {[%clk 0:00:12.6]}
35. f6 {[%clk 0:01:42.1]} 35... Qc7 {[%clk 0:00:06.7]} 36. Qg6 {[%clk
0:01:40.7]} 36... Ra7 {[%clk 0:00:03.2]} 37. Qxh5+ {[%clk 0:01:39.3]} 37... Qh7
{[%clk 0:00:03.3]} 38. Rxe5 {[%clk 0:01:38.1]} 38... Rd7 {[%clk 0:00:01.2]} 39.
f7 {[%clk 0:01:31.7]} 1-0

[Event "Early-Titled-Tuesday-Blitz-March-19-2024"]
[Site "Chess.com"]
[Date "2024.03.19"]
[Round "4"]
[White "AlexeiShirov"]
[Black "only_strong_moves"]
[Result "1/2-1/2"]
[WhiteElo "2844"]
[BlackElo "2619"]
[TimeControl "180+1"]
[EndTime "8:38:52 PDT"]
[Termination "Game drawn by agreement"]

1. e4 {[%clk 0:03:00.9]} 1... e5 {[%clk 0:02:58.6]} 2. Nf3 {[%clk 0:03:00.2]}
2... Nc6 {[%clk 0:02:58.3]} 3. Bb5 {[%clk 0:02:57.6]} 3... a6 {[%clk 0:02:57.8]}
4. Ba4 {[%clk 0:02:56.9]} 4... Nge7 {[%clk 0:02:58.1]} 5. d4 {[%clk 0:02:54.7]}
5... exd4 {[%clk 0:02:56.6]} 6. Nxd4 {[%clk 0:02:53.2]} 6... Nxd4 {[%clk
0:02:57.5]} 7. Qxd4 {[%clk 0:02:51.7]} 7... Ng6 {[%clk 0:02:51.9]} 8. Nc3 {[%clk
0:02:46.8]} 8... b5 {[%clk 0:02:38.9]} 9. Bb3 {[%clk 0:02:43.4]} 9... Bb7 {[%clk
0:02:39.2]} 10. a4 {[%clk 0:02:40.4]} 10... c5 {[%clk 0:02:19.1]} 11. Qe3 {[%clk
0:02:39.8]} 11... c4 {[%clk 0:02:17.4]} 12. Ba2 {[%clk 0:02:39.1]} 12... b4
{[%clk 0:01:22.8]} 13. Nd5 {[%clk 0:02:37.9]} 13... Rc8 {[%clk 0:01:22.9]} 14.
O-O {[%clk 0:02:29.4]} 14... Bc5 {[%clk 0:01:16.4]} 15. Qg3 {[%clk 0:02:28.7]}
15... O-O {[%clk 0:01:16.2]} 16. Bg5 {[%clk 0:02:23.3]} 16... f6 {[%clk
0:01:04.6]} 17. Bd2 {[%clk 0:02:22.5]} 17... Bxd5 {[%clk 0:01:03.2]} 18. exd5
{[%clk 0:02:20.2]} 18... Qb6 {[%clk 0:01:00]} 19. a5 {[%clk 0:02:13.5]} 19...
Qd6 {[%clk 0:00:50.2]} 20. Bxc4 {[%clk 0:02:06.1]} 20... Qxg3 {[%clk 0:00:49.2]}
21. hxg3 {[%clk 0:02:05.4]} 21... Bxf2+ {[%clk 0:00:49]} 22. Rxf2 {[%clk
0:02:04]} 22... Rxc4 {[%clk 0:00:49.9]} 23. Be1 {[%clk 0:01:56.5]} 23... Rfc8
{[%clk 0:00:48.5]} 24. Ra4 {[%clk 0:01:53.1]} 24... Rxc2 {[%clk 0:00:17.7]} 25.
Rxc2 {[%clk 0:01:51.1]} 25... Rxc2 {[%clk 0:00:18.6]} 26. Rxb4 {[%clk
0:01:50.7]} 26... Ne5 {[%clk 0:00:18.9]} 27. Rb8+ {[%clk 0:01:47]} 27... Kf7
{[%clk 0:00:18.9]} 28. Bc3 {[%clk 0:01:45.6]} 28... Ng4 {[%clk 0:00:19.1]} 29.
Kf1 {[%clk 0:01:44.1]} 29... Ne3+ {[%clk 0:00:19.4]} 30. Ke1 {[%clk 0:01:43.8]}
30... Nxg2+ {[%clk 0:00:19.8]} 31. Kd1 {[%clk 0:01:43.4]} 31... Ne3+ {[%clk
0:00:20.7]} 32. Ke1 {[%clk 0:01:43.4]} 32... Nxd5 {[%clk 0:00:16.7]} 33. Bd2
{[%clk 0:01:40.5]} 33... h5 {[%clk 0:00:11.4]} 34. b4 {[%clk 0:01:39.6]} 34...
Rc6 {[%clk 0:00:08.3]} 35. b5 {[%clk 0:01:34.4]} 35... axb5 {[%clk 0:00:09.2]}
36. Rxb5 {[%clk 0:01:33.7]} 36... Ke6 {[%clk 0:00:10.1]} 37. Rb8 {[%clk
0:01:33.1]} 37... g5 {[%clk 0:00:09.8]} 38. Rh8 {[%clk 0:01:31.9]} 38... h4
{[%clk 0:00:09.1]} 39. gxh4 {[%clk 0:01:31.3]} 39... gxh4 {[%clk 0:00:10]} 40.
Rxh4 {[%clk 0:01:30]} 40... Nc7 {[%clk 0:00:09.7]} 41. Re4+ {[%clk 0:01:23.7]}
1/2-1/2

[Event "Early-Titled-Tuesday-Blitz-March-19-2024"]
[Site "Chess.com"]
[Date "2024.03.19"]
[Round "4"]
[White "rikchessmx"]
[Black "ozen_metehan"]
[Result "1-0"]
[WhiteElo "2290"]
[BlackElo "2445"]
[TimeControl "180+1"]
[EndTime "8:38:55 PDT"]
[Termination "rikchessmx won by resignation"]

1. e4 {[%clk 0:03:00.9]} 1... e6 {[%clk 0:02:50]} 2. d4 {[%clk 0:03:00.1]} 2...
d5 {[%clk 0:02:49.3]} 3. Nc3 {[%clk 0:03:00.6]} 3... Bb4 {[%clk 0:02:41.1]} 4.
e5 {[%clk 0:02:53.9]} 4... c5 {[%clk 0:02:40.6]} 5. a3 {[%clk 0:02:54]} 5...
Bxc3+ {[%clk 0:02:27.2]} 6. bxc3 {[%clk 0:02:54.9]} 6... Nc6 {[%clk 0:02:26.6]}
7. Qg4 {[%clk 0:02:51.9]} 7... g6 {[%clk 0:02:25.4]} 8. Nf3 {[%clk 0:02:47.5]}
8... Qa5 {[%clk 0:02:23.1]} 9. Bd2 {[%clk 0:02:45.3]} 9... Qa4 {[%clk
0:02:18.5]} 10. Ra2 {[%clk 0:02:43.6]} 10... b6 {[%clk 0:02:12.7]} 11. Qf4
{[%clk 0:02:43.1]} 11... h6 {[%clk 0:02:12.1]} 12. dxc5 {[%clk 0:02:39.7]} 12...
Qxf4 {[%clk 0:02:10.6]} 13. Bxf4 {[%clk 0:02:39.2]} 13... bxc5 {[%clk
0:02:11.5]} 14. Bb5 {[%clk 0:02:37.2]} 14... Bd7 {[%clk 0:02:11.2]} 15. Be3
{[%clk 0:02:35.2]} 15... c4 {[%clk 0:02:09.7]} 16. Kd2 {[%clk 0:02:25.8]} 16...
Nge7 {[%clk 0:02:09.1]} 17. Rb1 {[%clk 0:02:23]} 17... Kd8 {[%clk 0:02:00.2]}
18. Rab2 {[%clk 0:02:15.5]} 18... Kc7 {[%clk 0:01:57.6]} 19. Bc5 {[%clk
0:02:15.1]} 19... Nc8 {[%clk 0:01:54.6]} 20. Ba6 {[%clk 0:02:10.6]} 20... Rb8
{[%clk 0:01:47.8]} 21. Rb7+ {[%clk 0:02:06.9]} 21... Rxb7 {[%clk 0:01:46.7]} 22.
Rxb7+ {[%clk 0:02:06.4]} 22... Kd8 {[%clk 0:01:47.6]} 23. h4 {[%clk 0:01:25.4]}
23... Na5 {[%clk 0:01:27]} 24. Rb2 {[%clk 0:01:20]} 24... Kc7 {[%clk 0:01:22.6]}
25. Nd4 {[%clk 0:01:19.2]} 25... Nb6 {[%clk 0:01:16.7]} 26. Bd6+ {[%clk
0:01:13.6]} 26... Kd8 {[%clk 0:01:11.6]} 27. f4 {[%clk 0:01:05.9]} 27... Nc6
{[%clk 0:01:00.5]} 28. Nb5 {[%clk 0:01:00.2]} 28... Bc8 {[%clk 0:00:54.9]} 29.
Nxa7 {[%clk 0:00:39]} 29... Bxa6 {[%clk 0:00:23.7]} 30. Nxc6+ {[%clk 0:00:36.3]}
1-0

[Event "Early-Titled-Tuesday-Blitz-March-19-2024"]
[Site "Chess.com"]
[Date "2024.03.19"]
[Round "4"]
[White "Ginger_GM"]
[Black "Byniolus"]
[Result "1-0"]
[WhiteElo "2598"]
[BlackElo "2796"]
[TimeControl "180+1"]
[EndTime "8:38:59 PDT"]
[Termination "Ginger_GM won on time"]

1. d4 {[%clk 0:03:00.9]} 1... d6 {[%clk 0:02:59.9]} 2. Nc3 {[%clk 0:02:57.3]}
2... Nf6 {[%clk 0:02:59.5]} 3. Bf4 {[%clk 0:02:55.8]} 3... c6 {[%clk 0:02:53.8]}
4. e4 {[%clk 0:02:52.4]} 4... Qb6 {[%clk 0:02:52]} 5. Qd2 {[%clk 0:02:47.3]}
5... Qxb2 {[%clk 0:02:51.8]} 6. Rb1 {[%clk 0:02:47.4]} 6... Qa3 {[%clk
0:02:52.4]} 7. Nf3 {[%clk 0:02:37.4]} 7... e6 {[%clk 0:02:51.9]} 8. e5 {[%clk
0:02:27.2]} 8... Nd5 {[%clk 0:02:51]} 9. Nxd5 {[%clk 0:02:25.6]} 9... cxd5
{[%clk 0:02:48.3]} 10. Bb5+ {[%clk 0:02:24.2]} 10... Nc6 {[%clk 0:02:44.9]} 11.
Rb3 {[%clk 0:02:16.6]} 11... Qxa2 {[%clk 0:02:35.9]} 12. O-O {[%clk 0:02:15.1]}
12... a6 {[%clk 0:02:12.7]} 13. Bxc6+ {[%clk 0:02:11.4]} 13... bxc6 {[%clk
0:02:13.6]} 14. exd6 {[%clk 0:02:03.5]} 14... Qa4 {[%clk 0:01:42.7]} 15. Qc3
{[%clk 0:01:39.6]} 15... Qc4 {[%clk 0:01:31]} 16. Qa5 {[%clk 0:01:39.4]} 16...
f6 {[%clk 0:01:22.5]} 17. Qc7 {[%clk 0:01:35.4]} 17... a5 {[%clk 0:00:32.5]} 18.
Re1 {[%clk 0:01:27.8]} 18... Qa6 {[%clk 0:00:09.6]} 19. Rb6 {[%clk 0:01:15.1]}
19... Qa7 {[%clk 0:00:09.3]} 20. d7+ {[%clk 0:01:14.1]} 20... Bxd7 {[%clk
0:00:07.9]} 21. Rb7 {[%clk 0:01:14.5]} 21... Qxb7 {[%clk 0:00:04.8]} 22. Qxb7
{[%clk 0:01:14.9]} 22... Rc8 {[%clk 0:00:04]} 23. Qa6 {[%clk 0:01:04.9]} 23...
Bb4 {[%clk 0:00:03.2]} 24. Bd2 {[%clk 0:01:04.4]} 24... Bxd2 {[%clk 0:00:02.8]}
25. Nxd2 {[%clk 0:01:04]} 25... O-O {[%clk 0:00:03.7]} 26. Qxa5 {[%clk
0:01:04.2]} 26... Ra8 {[%clk 0:00:02.4]} 27. Qc7 {[%clk 0:01:04.2]} 27... Rfd8
{[%clk 0:00:02.7]} 28. h4 {[%clk 0:01:03.4]} 28... h6 {[%clk 0:00:02.1]} 29. h5
{[%clk 0:01:01.9]} 29... Rac8 {[%clk 0:00:02.4]} 30. Qd6 {[%clk 0:00:59.7]}
30... Be8 {[%clk 0:00:01.7]} 31. Qxe6+ {[%clk 0:00:59.6]} 31... Bf7 {[%clk
0:00:02.6]} 32. Qg4 {[%clk 0:00:59.8]} 32... c5 {[%clk 0:00:02.8]} 33. Nf3
{[%clk 0:00:58.7]} 1-0